[Event "Titled Tuesday Blitz May 4 2021"]
[White "Lehtosaari, Mauri"]
[Black "Sapunov, Evgeny"]
[WhiteFideId "501999"]
[BlackFideId "4126661"]
[WhiteElo "2403"]
[BlackElo "2470"]
[Result "0-1"]
[Round "01"]
[TimeControl "180+1"]
[Date "2021.05.04"]
[WhiteClock "0:00:05"]
[BlackClock "0:00:15"]

1. d4 {[%clk 0:02:59]}  Nf6 {[%clk 0:02:59]} 2. Nf3 {[%clk 0:02:59]}  g6 {[%clk 0:03:00]} 3. Bg5 {[%clk 0:02:59]}  Bg7 {[%clk 0:02:59]} 4. Nbd2 {[%clk 0:03:00]}  d5 {[%clk 0:02:59]} 5. e3 {[%clk 0:03:00]}  Nbd7 {[%clk 0:02:59]} 6. Be2 {[%clk 0:02:59]}  c5 {[%clk 0:03:00]} 7. c3 {[%clk 0:02:58]}  O-O {[%clk 0:03:00]} 8. O-O {[%clk 0:02:59]}  b6 {[%clk 0:03:00]} 9. a4 {[%clk 0:02:58]}  a6 {[%clk 0:03:01]} 10. Ne5 {[%clk 0:02:58]}  Nxe5 {[%clk 0:02:59]} 11. dxe5 {[%clk 0:02:58]}  Nd7 {[%clk 0:02:59]} 12. f4 {[%clk 0:02:59]}  f6 {[%clk 0:02:59]} 13. exf6 {[%clk 0:02:55]}  exf6 {[%clk 0:02:59]} 14. Bh4 {[%clk 0:02:55]}  Re8 {[%clk 0:02:50]} 15. Bf2 {[%clk 0:02:51]}  Bb7 {[%clk 0:02:49]} 16. Bf3 {[%clk 0:02:50]}  f5 {[%clk 0:02:48]} 17. Qb3 {[%clk 0:02:45]}  Nf6 {[%clk 0:02:45]} 18. Rad1 {[%clk 0:02:41]}  Qc7 {[%clk 0:02:43]} 19. Rfe1 {[%clk 0:02:38]}  Kh8 {[%clk 0:02:43]} 20. Bh4 {[%clk 0:02:29]}  Ne4 {[%clk 0:02:38]} 21. Nxe4 {[%clk 0:02:24]}  fxe4 {[%clk 0:02:36]} 22. Bg4 {[%clk 0:02:20]}  Bc6 {[%clk 0:02:20]} 23. h3 {[%clk 0:01:57]}  b5 {[%clk 0:02:05]} 24. axb5 {[%clk 0:01:53]}  axb5 {[%clk 0:02:05]} 25. Ra1 {[%clk 0:01:52]}  Qb6 {[%clk 0:01:58]} 26. Bf2 {[%clk 0:01:50]}  Red8 {[%clk 0:01:47]} 27. Bh4 {[%clk 0:01:40]}  Re8 {[%clk 0:01:44]} 28. Bf2 {[%clk 0:01:40]}  Qc7 {[%clk 0:01:44]} 29. Red1 {[%clk 0:01:22]}  Qf7 {[%clk 0:01:39]} 30. Be2 {[%clk 0:01:11]}  Qd7 {[%clk 0:01:27]} 31. Bg4 {[%clk 0:01:06]}  Qb7 {[%clk 0:01:27]} 32. Be2 {[%clk 0:01:05]}  h6 {[%clk 0:01:27]} 33. Kh2 {[%clk 0:01:03]}  Kh7 {[%clk 0:01:26]} 34. Kg1 {[%clk 0:01:03]}  Reb8 {[%clk 0:01:23]} 35. Kh2 {[%clk 0:01:02]}  Bf6 {[%clk 0:01:22]} 36. Kg1 {[%clk 0:01:02]}  h5 {[%clk 0:01:22]} 37. g3 {[%clk 0:00:59]}  Qc8 {[%clk 0:01:18]} 38. Kg2 {[%clk 0:01:00]}  Qb7 {[%clk 0:01:10]} 39. g4 {[%clk 0:00:57]}  c4 {[%clk 0:01:07]} 40. Qc2 {[%clk 0:00:54]}  hxg4 {[%clk 0:01:05]} 41. hxg4 {[%clk 0:00:54]}  b4 {[%clk 0:01:06]} 42. Rh1+ {[%clk 0:00:51]}  Kg8 {[%clk 0:01:05]} 43. Bh4 {[%clk 0:00:46]}  Bg7 {[%clk 0:01:05]} 44. Rxa8 {[%clk 0:00:46]}  Rxa8 {[%clk 0:01:05]} 45. Qd2 {[%clk 0:00:41]}  Ra2 {[%clk 0:01:03]} 46. Qe1 {[%clk 0:00:32]}  Rxb2 {[%clk 0:00:57]} 47. cxb4 {[%clk 0:00:28]}  c3 {[%clk 0:00:57]} 48. Kg3 {[%clk 0:00:26]}  Qb6 {[%clk 0:00:57]} 49. Bd1 {[%clk 0:00:24]}  Rd2 {[%clk 0:00:53]} 50. Bb3 {[%clk 0:00:22]}  Rd3 {[%clk 0:00:53]} 51. Kf2 {[%clk 0:00:21]}  Qxb4 {[%clk 0:00:52]} 52. Qb1 {[%clk 0:00:19]}  Qc5 {[%clk 0:00:50]} 53. Re1 {[%clk 0:00:18]}  Rd2+ {[%clk 0:00:49]} 54. Re2 {[%clk 0:00:19]}  Rb2 {[%clk 0:00:46]} 55. Qd1 {[%clk 0:00:17]}  Kh7 {[%clk 0:00:44]} 56. Bg5 {[%clk 0:00:16]}  Kg8 {[%clk 0:00:41]} 57. Bc2 {[%clk 0:00:13]}  Bb5 {[%clk 0:00:39]} 58. Bxe4 {[%clk 0:00:11]}  Rxe2+ {[%clk 0:00:37]} 59. Kg3 {[%clk 0:00:11]}  Rxe3+ {[%clk 0:00:34]} 60. Kh4 {[%clk 0:00:10]}  Bc6 {[%clk 0:00:32]} 61. Bxg6 {[%clk 0:00:10]}  Qd4 {[%clk 0:00:19]} 62. Qb3 {[%clk 0:00:08]}  Qd2 {[%clk 0:00:15]} 63. Qb8+ {[%clk 0:00:08]}  Bf8 {[%clk 0:00:16]} 64. Bf6 {[%clk 0:00:05]}  Qh2+ {[%clk 0:00:15]} 65. Kg5 {[%clk 0:00:05]}  Qh6+ {[%clk 0:00:15]} 66. Kf5 {[%clk 0:00:05]}  Bd7# {[%clk 0:00:15]} 0-1


[Site "https://www.chess.com"]

[Event "Titled Tuesday Blitz May 4 2021"]
[White "Lopez Del Alamo, Antonio"]
[Black "Williams, Simon K"]
[WhiteFideId "2227339"]
[BlackFideId "404454"]
[WhiteElo "2098"]
[BlackElo "2468"]
[Result "0-1"]
[Round "01"]
[TimeControl "180+1"]
[Date "2021.05.04"]
[WhiteClock "0:00:28"]
[BlackClock "0:00:49"]

1. e4 {[%clk 0:02:56]}  d6 {[%clk 0:02:55]} 2. d4 {[%clk 0:02:55]}  Nf6 {[%clk 0:02:54]} 3. Nc3 {[%clk 0:02:54]}  Nbd7 {[%clk 0:02:53]} 4. f4 {[%clk 0:02:52]}  e5 {[%clk 0:02:53]} 5. Nf3 {[%clk 0:02:52]}  exd4 {[%clk 0:02:52]} 6. Qxd4 {[%clk 0:02:43]}  c6 {[%clk 0:02:51]} 7. Be3 {[%clk 0:02:23]}  d5 {[%clk 0:02:46]} 8. e5 {[%clk 0:02:11]}  Ng4 {[%clk 0:02:39]} 9. Qd2 {[%clk 0:01:56]}  Nxe3 {[%clk 0:02:30]} 10. Qxe3 {[%clk 0:01:57]}  Bc5 {[%clk 0:02:26]} 11. Qd2 {[%clk 0:01:56]}  b5 {[%clk 0:01:56]} 12. O-O-O {[%clk 0:01:51]}  Qb6 {[%clk 0:01:52]} 13. Re1 {[%clk 0:01:49]}  O-O {[%clk 0:01:51]} 14. Kb1 {[%clk 0:01:47]}  Re8 {[%clk 0:01:21]} 15. Bd3 {[%clk 0:01:45]}  a5 {[%clk 0:01:15]} 16. Qe2 {[%clk 0:01:33]}  Nf8 {[%clk 0:01:13]} 17. Ng5 {[%clk 0:01:27]}  a4 {[%clk 0:01:05]} 18. Qh5 {[%clk 0:01:24]}  g6 {[%clk 0:01:05]} 19. Qh6 {[%clk 0:01:22]}  b4 {[%clk 0:01:04]} 20. Nd1 {[%clk 0:01:18]}  b3 {[%clk 0:01:03]} 21. cxb3 {[%clk 0:00:49]}  axb3 {[%clk 0:01:03]} 22. a3 {[%clk 0:00:49]}  Bxa3 {[%clk 0:01:03]} 23. h4 {[%clk 0:00:48]}  Bxb2 {[%clk 0:01:01]} 24. Nxb2 {[%clk 0:00:47]}  Qa5 {[%clk 0:01:00]} 25. Kc1 {[%clk 0:00:37]}  Qc3+ {[%clk 0:01:00]} 26. Kb1 {[%clk 0:00:33]}  Ra2 {[%clk 0:00:53]} 27. Re2 {[%clk 0:00:34]}  Bg4 {[%clk 0:00:51]} 28. h5 {[%clk 0:00:33]}  Rea8 {[%clk 0:00:49]} 29. hxg6 {[%clk 0:00:28]}  Ra1# {[%clk 0:00:49]} 0-1


[Site "https://www.chess.com"]

[Event "Titled Tuesday Blitz May 4 2021"]
[White "Luberanski, Jakub"]
[Black "Poormosavi, Seyed Kian"]
[WhiteFideId "21830509"]
[BlackFideId "12585807"]
[WhiteElo "2078"]
[BlackElo "2134"]
[Result "1/2-1/2"]
[Round "01"]
[TimeControl "180+1"]
[Date "2021.05.04"]
[WhiteClock "0:00:16"]
[BlackClock "0:00:34"]

1. d4 {[%clk 0:03:00]}  Nf6 {[%clk 0:02:57]} 2. c4 {[%clk 0:02:59]}  e6 {[%clk 0:02:56]} 3. Nf3 {[%clk 0:02:55]}  b6 {[%clk 0:02:56]} 4. a3 {[%clk 0:02:55]}  Bb7 {[%clk 0:02:56]} 5. Nc3 {[%clk 0:02:55]}  Be7 {[%clk 0:02:57]} 6. d5 {[%clk 0:02:52]}  O-O {[%clk 0:02:57]} 7. e4 {[%clk 0:02:49]}  d6 {[%clk 0:02:57]} 8. Be2 {[%clk 0:02:49]}  Nbd7 {[%clk 0:02:57]} 9. O-O {[%clk 0:02:50]}  a5 {[%clk 0:02:56]} 10. Qc2 {[%clk 0:02:36]}  Nc5 {[%clk 0:02:47]} 11. Be3 {[%clk 0:02:30]}  exd5 {[%clk 0:02:44]} 12. cxd5 {[%clk 0:02:28]}  Re8 {[%clk 0:02:44]} 13. b4 {[%clk 0:02:21]}  axb4 {[%clk 0:02:43]} 14. axb4 {[%clk 0:02:22]}  Rxa1 {[%clk 0:02:43]} 15. Rxa1 {[%clk 0:02:22]}  Ncxe4 {[%clk 0:02:44]} 16. Nxe4 {[%clk 0:02:21]}  Nxe4 {[%clk 0:02:45]} 17. Bb5 {[%clk 0:01:39]}  Bxd5 {[%clk 0:02:35]} 18. Bxe8 {[%clk 0:01:39]}  Qxe8 {[%clk 0:02:36]} 19. Qxc7 {[%clk 0:01:39]}  b5 {[%clk 0:02:32]} 20. Ra7 {[%clk 0:01:38]}  Bf8 {[%clk 0:02:31]} 21. h3 {[%clk 0:01:35]}  Nf6 {[%clk 0:02:27]} 22. Nd4 {[%clk 0:01:30]}  Qe4 {[%clk 0:02:25]} 23. Nf3 {[%clk 0:01:22]}  Qxb4 {[%clk 0:02:24]} 24. Bd4 {[%clk 0:01:16]}  Qb1+ {[%clk 0:02:06]} 25. Kh2 {[%clk 0:01:14]}  Qf5 {[%clk 0:02:06]} 26. Qc3 {[%clk 0:01:04]}  b4 {[%clk 0:00:54]} 27. Qe3 {[%clk 0:00:49]}  Bxf3 {[%clk 0:00:39]} 28. Qxf3 {[%clk 0:00:45]}  Qxf3 {[%clk 0:00:29]} 29. gxf3 {[%clk 0:00:46]}  Nd5 {[%clk 0:00:30]} 30. Kg3 {[%clk 0:00:40]}  g5 {[%clk 0:00:26]} 31. Ra5 {[%clk 0:00:39]}  Nc7 {[%clk 0:00:26]} 32. Rxg5+ {[%clk 0:00:39]}  Bg7 {[%clk 0:00:25]} 33. Rxg7+ {[%clk 0:00:38]}  Kf8 {[%clk 0:00:26]} 34. Rxh7 {[%clk 0:00:37]}  Ne6 {[%clk 0:00:27]} 35. Rh8+ {[%clk 0:00:36]}  Ke7 {[%clk 0:00:27]} 36. Bb2 {[%clk 0:00:37]}  d5 {[%clk 0:00:27]} 37. Rb8 {[%clk 0:00:35]}  Kd6 {[%clk 0:00:28]} 38. Rxb4 {[%clk 0:00:34]}  Kc5 {[%clk 0:00:29]} 39. Rb8 {[%clk 0:00:31]}  d4 {[%clk 0:00:30]} 40. Rc8+ {[%clk 0:00:30]}  Kd5 {[%clk 0:00:30]} 41. Bxd4 {[%clk 0:00:24]}  Kxd4 {[%clk 0:00:29]} 42. h4 {[%clk 0:00:22]}  Ke5 {[%clk 0:00:30]} 43. Kg4 {[%clk 0:00:21]}  Kf6 {[%clk 0:00:30]} 44. Rc6 {[%clk 0:00:20]}  Kg6 {[%clk 0:00:30]} 45. Rxe6+ {[%clk 0:00:19]}  fxe6 {[%clk 0:00:30]} 46. Kf4 {[%clk 0:00:19]}  Kf6 {[%clk 0:00:30]} 47. h5 {[%clk 0:00:19]}  Kf7 {[%clk 0:00:27]} 48. Ke5 {[%clk 0:00:19]}  Ke7 {[%clk 0:00:27]} 49. h6 {[%clk 0:00:19]}  Kf7 {[%clk 0:00:28]} 50. h7 {[%clk 0:00:19]}  Kg7 {[%clk 0:00:29]} 51. Kxe6 {[%clk 0:00:19]}  Kxh7 {[%clk 0:00:29]} 52. Ke7 {[%clk 0:00:20]}  Kg6 {[%clk 0:00:30]} 53. f4 {[%clk 0:00:20]}  Kf5 {[%clk 0:00:31]} 54. Kd6 {[%clk 0:00:18]}  Kxf4 {[%clk 0:00:32]} 55. Kd5 {[%clk 0:00:18]}  Kf3 {[%clk 0:00:33]} 56. Kd4 {[%clk 0:00:16]}  Kxf2 {[%clk 0:00:34]} 1/2-1/2


[Site "https://www.chess.com"]

[Event "Titled Tuesday Blitz May 4 2021"]
[White "Maly, Alexey"]
[Black "Pesotskiy, Mikhail"]
[WhiteFideId "14103184"]
[BlackFideId "34164453"]
[WhiteElo "2314"]
[BlackElo "2052"]
[Result "1-0"]
[Round "01"]
[TimeControl "180+1"]
[Date "2021.05.04"]
[WhiteClock "0:02:11"]
[BlackClock "0:01:18"]

1. d4 {[%clk 0:03:00]}  Nf6 {[%clk 0:01:42]} 2. c4 {[%clk 0:02:59]}  e6 {[%clk 0:01:42]} 3. Nf3 {[%clk 0:02:58]}  Bb4+ {[%clk 0:01:43]} 4. Nbd2 {[%clk 0:02:58]}  b6 {[%clk 0:01:43]} 5. g3 {[%clk 0:02:59]}  Bb7 {[%clk 0:01:43]} 6. Bg2 {[%clk 0:02:59]}  O-O {[%clk 0:01:44]} 7. O-O {[%clk 0:03:00]}  Qe7 {[%clk 0:01:44]} 8. Qc2 {[%clk 0:02:59]}  d6 {[%clk 0:01:42]} 9. Nb3 {[%clk 0:02:58]}  Be4 {[%clk 0:01:36]} 10. Qd1 {[%clk 0:02:58]}  d5 {[%clk 0:01:37]} 11. a3 {[%clk 0:02:42]}  Bd6 {[%clk 0:01:37]} 12. Nbd2 {[%clk 0:02:38]}  Nbd7 {[%clk 0:01:30]} 13. Nxe4 {[%clk 0:02:38]}  Nxe4 {[%clk 0:01:31]} 14. b3 {[%clk 0:02:36]}  Rfd8 {[%clk 0:01:29]} 15. Bb2 {[%clk 0:02:36]}  Rac8 {[%clk 0:01:30]} 16. e3 {[%clk 0:02:34]}  f5 {[%clk 0:01:23]} 17. Qe2 {[%clk 0:02:34]}  a5 {[%clk 0:01:23]} 18. Rfd1 {[%clk 0:02:33]}  c5 {[%clk 0:01:20]} 19. dxc5 {[%clk 0:02:30]}  Ndxc5 {[%clk 0:01:21]} 20. cxd5 {[%clk 0:02:28]}  exd5 {[%clk 0:01:22]} 21. Rxd5 {[%clk 0:02:25]}  Nxb3 {[%clk 0:01:22]} 22. Rad1 {[%clk 0:02:22]}  Bc5 {[%clk 0:01:17]} 23. Rxd8+ {[%clk 0:02:14]}  Rxd8 {[%clk 0:01:18]} 24. Qc4+ {[%clk 0:02:11]} 1-0


[Site "https://www.chess.com"]

[Event "Titled Tuesday Blitz May 4 2021"]
[White "Mamedyarov, Shakhriyar"]
[Black "Navalgund, Niranjan"]
[WhiteFideId "13401319"]
[BlackFideId "5030854"]
[WhiteElo "2716"]
[BlackElo "2290"]
[Result "1-0"]
[Round "01"]
[TimeControl "180+1"]
[Date "2021.05.04"]
[WhiteClock "0:00:20"]
[BlackClock "0:00:13"]

1. d4 {[%clk 0:02:58]}  Nf6 {[%clk 0:02:59]} 2. c4 {[%clk 0:02:57]}  Nc6 {[%clk 0:02:58]} 3. d5 {[%clk 0:02:53]}  Ne5 {[%clk 0:02:58]} 4. Nc3 {[%clk 0:02:52]}  e6 {[%clk 0:02:57]} 5. Qd4 {[%clk 0:02:40]}  Ng6 {[%clk 0:02:55]} 6. Nf3 {[%clk 0:02:38]}  b6 {[%clk 0:02:49]} 7. Be3 {[%clk 0:02:19]}  Bc5 {[%clk 0:02:46]} 8. Qd2 {[%clk 0:02:17]}  O-O {[%clk 0:02:41]} 9. O-O-O {[%clk 0:02:07]}  exd5 {[%clk 0:02:38]} 10. cxd5 {[%clk 0:02:04]}  d6 {[%clk 0:02:36]} 11. h4 {[%clk 0:01:57]}  Bg4 {[%clk 0:02:28]} 12. Bxc5 {[%clk 0:01:41]}  bxc5 {[%clk 0:02:26]} 13. Nh2 {[%clk 0:01:41]}  h5 {[%clk 0:02:11]} 14. f3 {[%clk 0:01:40]}  Bd7 {[%clk 0:02:10]} 15. e4 {[%clk 0:01:37]}  Rb8 {[%clk 0:02:08]} 16. Be2 {[%clk 0:01:21]}  Rb4 {[%clk 0:02:07]} 17. g4 {[%clk 0:01:18]}  Qe7 {[%clk 0:01:59]} 18. g5 {[%clk 0:01:14]}  Nh7 {[%clk 0:01:53]} 19. f4 {[%clk 0:01:12]}  Rfb8 {[%clk 0:01:47]} 20. b3 {[%clk 0:01:12]}  Nxh4 {[%clk 0:01:30]} 21. Bxh5 {[%clk 0:00:50]}  c4 {[%clk 0:01:27]} 22. Nf3 {[%clk 0:00:41]}  cxb3 {[%clk 0:01:20]} 23. a3 {[%clk 0:00:40]}  Rxe4 {[%clk 0:01:10]} 24. Rxh4 {[%clk 0:00:34]}  Bf5 {[%clk 0:01:07]} 25. Kb2 {[%clk 0:00:33]}  Re3 {[%clk 0:00:56]} 26. Nd4 {[%clk 0:00:31]}  Bc2 {[%clk 0:00:54]} 27. Be2 {[%clk 0:00:25]}  Bxd1 {[%clk 0:00:51]} 28. Bxd1 {[%clk 0:00:24]}  Qd7 {[%clk 0:00:36]} 29. Qh2 {[%clk 0:00:20]}  Rxc3 {[%clk 0:00:28]} 30. Rxh7 {[%clk 0:00:20]}  Rc2+ {[%clk 0:00:27]} 31. Bxc2 {[%clk 0:00:19]}  bxc2+ {[%clk 0:00:28]} 32. Kc1 {[%clk 0:00:20]}  Rb1+ {[%clk 0:00:16]} 33. Kxc2 {[%clk 0:00:20]}  Qa4+ {[%clk 0:00:16]} 34. Kxb1 {[%clk 0:00:20]}  Qd1+ {[%clk 0:00:17]} 35. Ka2 {[%clk 0:00:20]}  Kf8 {[%clk 0:00:13]} 36. Rh8+ {[%clk 0:00:20]}  Ke7 {[%clk 0:00:13]} 37. Nc6+ {[%clk 0:00:20]} 1-0


[Site "https://www.chess.com"]

[Event "Titled Tuesday Blitz May 4 2021"]
[White "Maranhao,Jose Renato Ruiz"]
[Black "Grochal, Joey"]
[WhiteFideId "2135175"]
[BlackFideId "1019945"]
[WhiteElo "1970"]
[BlackElo "2265"]
[Result "0-1"]
[Round "01"]
[TimeControl "180+1"]
[Date "2021.05.04"]
[WhiteClock "0:00:08"]
[BlackClock "0:00:22"]

1. e4 {[%clk 0:03:00]}  c5 {[%clk 0:02:58]} 2. Nf3 {[%clk 0:03:00]}  e6 {[%clk 0:02:58]} 3. d4 {[%clk 0:02:59]}  cxd4 {[%clk 0:02:59]} 4. Nxd4 {[%clk 0:03:00]}  Nc6 {[%clk 0:03:00]} 5. Nc3 {[%clk 0:03:00]}  Qc7 {[%clk 0:03:00]} 6. Nxc6 {[%clk 0:02:56]}  bxc6 {[%clk 0:03:00]} 7. Bd3 {[%clk 0:02:39]}  d5 {[%clk 0:02:59]} 8. O-O {[%clk 0:02:34]}  Nf6 {[%clk 0:02:59]} 9. Bg5 {[%clk 0:02:29]}  Be7 {[%clk 0:02:59]} 10. Qf3 {[%clk 0:02:13]}  O-O {[%clk 0:02:47]} 11. Rae1 {[%clk 0:01:51]}  d4 {[%clk 0:02:41]} 12. Ne2 {[%clk 0:01:50]}  e5 {[%clk 0:02:42]} 13. c3 {[%clk 0:01:35]}  c5 {[%clk 0:02:38]} 14. Qg3 {[%clk 0:01:32]}  Kh8 {[%clk 0:02:17]} 15. cxd4 {[%clk 0:01:29]}  cxd4 {[%clk 0:02:16]} 16. Rc1 {[%clk 0:01:27]}  Qd6 {[%clk 0:02:10]} 17. f4 {[%clk 0:01:22]}  Ng4 {[%clk 0:01:37]} 18. Bxe7 {[%clk 0:01:00]}  Qxe7 {[%clk 0:01:34]} 19. f5 {[%clk 0:00:59]}  Ne3 {[%clk 0:01:33]} 20. Rf3 {[%clk 0:00:56]}  f6 {[%clk 0:01:25]} 21. Bc4 {[%clk 0:00:53]}  Bb7 {[%clk 0:01:16]} 22. Qh4 {[%clk 0:00:51]}  h6 {[%clk 0:01:08]} 23. Be6 {[%clk 0:00:40]}  Ba6 {[%clk 0:01:03]} 24. Ng3 {[%clk 0:00:35]}  Rab8 {[%clk 0:00:41]} 25. b3 {[%clk 0:00:31]}  Bc8 {[%clk 0:00:41]} 26. Bc4 {[%clk 0:00:22]}  Nxc4 {[%clk 0:00:42]} 27. Rxc4 {[%clk 0:00:23]}  Ba6 {[%clk 0:00:42]} 28. Ra4 {[%clk 0:00:18]}  Bb5 {[%clk 0:00:42]} 29. Ra5 {[%clk 0:00:16]}  Rfc8 {[%clk 0:00:42]} 30. h3 {[%clk 0:00:15]}  d3 {[%clk 0:00:39]} 31. Nf1 {[%clk 0:00:12]}  Rc2 {[%clk 0:00:37]} 32. Rxb5 {[%clk 0:00:10]}  Rxb5 {[%clk 0:00:35]} 33. Rxd3 {[%clk 0:00:11]}  Rc1 {[%clk 0:00:30]} 34. Qf2 {[%clk 0:00:09]}  Rbc5 {[%clk 0:00:28]} 35. Kh2 {[%clk 0:00:09]}  R5c2 {[%clk 0:00:28]} 36. Rd2 {[%clk 0:00:08]}  Rxd2 {[%clk 0:00:27]} 37. Nxd2 {[%clk 0:00:09]}  Rc2 {[%clk 0:00:27]} 38. Qe3 {[%clk 0:00:09]}  Qd7 {[%clk 0:00:24]} 39. a4 {[%clk 0:00:08]}  Qxd2 {[%clk 0:00:22]} 0-1


[Site "https://www.chess.com"]

[Event "Titled Tuesday Blitz May 4 2021"]
[White "Matveeva, Olga"]
[Black "Tejedor Fuente, Enrique"]
[WhiteFideId "24107018"]
[BlackFideId "2299100"]
[WhiteElo "2108"]
[BlackElo "2535"]
[Result "0-1"]
[Round "01"]
[TimeControl "180+1"]
[Date "2021.05.04"]
[WhiteClock "0:00:01"]
[BlackClock "0:00:03"]

1. d4 {[%clk 0:03:00]}  Nf6 {[%clk 0:02:49]} 2. c4 {[%clk 0:03:00]}  b5 {[%clk 0:02:45]} 3. cxb5 {[%clk 0:02:59]}  a6 {[%clk 0:02:45]} 4. bxa6 {[%clk 0:02:57]}  g6 {[%clk 0:02:45]} 5. Nf3 {[%clk 0:02:49]}  Bg7 {[%clk 0:02:46]} 6. g3 {[%clk 0:02:49]}  O-O {[%clk 0:02:44]} 7. Bg2 {[%clk 0:02:48]}  Rxa6 {[%clk 0:02:42]} 8. O-O {[%clk 0:02:48]}  Bb7 {[%clk 0:02:40]} 9. Nc3 {[%clk 0:02:45]}  Nc6 {[%clk 0:02:35]} 10. e4 {[%clk 0:02:41]}  d6 {[%clk 0:02:31]} 11. Re1 {[%clk 0:02:40]}  Qa8 {[%clk 0:02:30]} 12. b3 {[%clk 0:02:18]}  Nd7 {[%clk 0:02:16]} 13. Bb2 {[%clk 0:02:14]}  e5 {[%clk 0:02:08]} 14. a4 {[%clk 0:01:55]}  Nxd4 {[%clk 0:01:29]} 15. Nxd4 {[%clk 0:01:53]}  exd4 {[%clk 0:01:30]} 16. Nb5 {[%clk 0:01:49]}  c5 {[%clk 0:01:30]} 17. b4 {[%clk 0:01:33]}  Rc8 {[%clk 0:01:22]} 18. Qe2 {[%clk 0:01:23]}  Ne5 {[%clk 0:01:07]} 19. f4 {[%clk 0:01:14]}  d3 {[%clk 0:00:55]} 20. Qf1 {[%clk 0:01:09]}  d2 {[%clk 0:00:41]} 21. Red1 {[%clk 0:01:03]}  Nf3+ {[%clk 0:00:39]} 22. Bxf3 {[%clk 0:00:59]}  Bxb2 {[%clk 0:00:40]} 23. Rab1 {[%clk 0:00:58]}  Bc1 {[%clk 0:00:40]} 24. bxc5 {[%clk 0:00:37]}  Rxc5 {[%clk 0:00:36]} 25. Qd3 {[%clk 0:00:27]}  Rxa4 {[%clk 0:00:33]} 26. Nxd6 {[%clk 0:00:25]}  Ba6 {[%clk 0:00:25]} 27. Qb3 {[%clk 0:00:22]}  Bc4 {[%clk 0:00:24]} 28. Qb8+ {[%clk 0:00:19]}  Qxb8 {[%clk 0:00:23]} 29. Rxb8+ {[%clk 0:00:20]}  Kg7 {[%clk 0:00:23]} 30. Ne8+ {[%clk 0:00:19]}  Kh6 {[%clk 0:00:24]} 31. g4 {[%clk 0:00:18]}  Ra3 {[%clk 0:00:02]} 32. g5+ {[%clk 0:00:16]}  Rxg5+ {[%clk 0:00:03]} 33. fxg5+ {[%clk 0:00:16]}  Kxg5 {[%clk 0:00:04]} 34. Kf2 {[%clk 0:00:16]}  h5 {[%clk 0:00:02]} 35. Rc8 {[%clk 0:00:14]}  Be6 {[%clk 0:00:02]} 36. Rcxc1 {[%clk 0:00:13]}  dxc1=Q {[%clk 0:00:02]} 37. Rxc1 {[%clk 0:00:14]}  Ra2+ {[%clk 0:00:02]} 38. Ke3 {[%clk 0:00:12]}  Ra3+ {[%clk 0:00:03]} 39. Kf2 {[%clk 0:00:12]}  Ra8 {[%clk 0:00:04]} 40. Nd6 {[%clk 0:00:12]}  Ra2+ {[%clk 0:00:04]} 41. Ke3 {[%clk 0:00:11]}  Ra3+ {[%clk 0:00:03]} 42. Kf2 {[%clk 0:00:11]}  Kf4 {[%clk 0:00:04]} 43. Be2 {[%clk 0:00:09]}  h4 {[%clk 0:00:03]} 44. Nc4 {[%clk 0:00:08]}  Ra2 {[%clk 0:00:02]} 45. Ne3 {[%clk 0:00:04]}  Kxe4 {[%clk 0:00:02]} 46. Rb1 {[%clk 0:00:03]}  Ke5 {[%clk 0:00:02]} 47. Rb5+ {[%clk 0:00:02]}  Kf6 {[%clk 0:00:02]} 48. Kf3 {[%clk 0:00:01]}  g5 {[%clk 0:00:03]} 49. Ng4+ {[%clk 0:00:01]}  Kg6 {[%clk 0:00:03]} 0-1


[Site "https://www.chess.com"]

[Event "Titled Tuesday Blitz May 4 2021"]
[White "Mayaud, Raphael"]
[Black "Klimkowski, Jan"]
[WhiteFideId "627151"]
[BlackFideId "21856222"]
[WhiteElo "2191"]
[BlackElo "1903"]
[Result "0-1"]
[Round "01"]
[TimeControl "180+1"]
[Date "2021.05.04"]
[WhiteClock "0:00:21"]
[BlackClock "0:01:57"]

1. d4 {[%clk 0:02:59]}  Nf6 {[%clk 0:02:59]} 2. Bg5 {[%clk 0:02:59]}  e6 {[%clk 0:03:00]} 3. e4 {[%clk 0:02:58]}  d5 {[%clk 0:02:50]} 4. Nd2 {[%clk 0:02:57]}  dxe4 {[%clk 0:02:43]} 5. Nxe4 {[%clk 0:02:56]}  Be7 {[%clk 0:02:43]} 6. Nxf6+ {[%clk 0:02:56]}  Bxf6 {[%clk 0:02:43]} 7. Bxf6 {[%clk 0:02:56]}  Qxf6 {[%clk 0:02:43]} 8. Nf3 {[%clk 0:02:56]}  b6 {[%clk 0:02:41]} 9. Bb5+ {[%clk 0:02:52]}  c6 {[%clk 0:02:37]} 10. Bd3 {[%clk 0:02:52]}  Nd7 {[%clk 0:02:37]} 11. Qe2 {[%clk 0:02:50]}  Bb7 {[%clk 0:02:35]} 12. O-O-O {[%clk 0:02:46]}  O-O {[%clk 0:02:31]} 13. h4 {[%clk 0:02:43]}  c5 {[%clk 0:02:20]} 14. Ng5 {[%clk 0:02:43]}  h6 {[%clk 0:02:10]} 15. Ne4 {[%clk 0:01:58]}  Qxd4 {[%clk 0:02:08]} 16. Nd6 {[%clk 0:01:12]}  Qf4+ {[%clk 0:02:05]} 17. Kb1 {[%clk 0:01:12]}  Bd5 {[%clk 0:02:05]} 18. Nb5 {[%clk 0:00:47]}  c4 {[%clk 0:01:59]} 19. g3 {[%clk 0:00:21]}  cxd3 {[%clk 0:01:57]} 20. Rxd3 {[%clk 0:00:21]} 0-1


[Site "https://www.chess.com"]